Cogmind - Beta 9.3 @@@ ROGUE MODE // 2019.12.20 @ 23:34:51 // Winter2019/RPGLIKE Player: stormcleaver5 Result: Destroyed by G-34 Mercenary with Small Laser Performance ------------- Evolutions (0) 0 Regions Visited (1) 200 Robots Destroyed (7) 35 Value Destroyed (149) 149 Prototype IDs (0) 0 Alien Tech Used (0) 0 Bonus (0) 0 TOTAL SCORE: 384 Bonus ------- None Cogmind --------- Core Integrity 0/600 Matter 251/300 Energy 250/250 System Corruption 0% Temperature Cool (6) Movement Rolling (80) Location -10/Materials Parts ------- > --- POWER (1) -------- Ion Engine > --- PROPULSION (1) --- Wheel > --- UTILITY (1) ------ Heat Sink > --- WEAPON (2) ------- Assault Rifle > --- INVENTORY (2) ---- Protomatter-32 Grenade Launcher Peak State ------------ > --- POWER ------------ Ion Engine > --- PROPULSION ------- Wheel > --- UTILITY ---------- Heat Sink > --- WEAPON ----------- EM Pulse Gun Assault Rifle > --- INVENTORY -------- Protomatter [Rating: 5] Favorites ----------- Power Ion Engine Engine Ion Engine Propulsion Wheel Wheel Wheel Utility Heat Sink Device Heat Sink Weapon EM Pulse Gun Energy Gun EM Pulse Gun Ballistic Gun Assault Rifle Build | -11 -10 ------- Run | Scr Mat Slots Evolved 1 | 1 . Power . | . . Propulsion . | . . Utility . | . . Weapon 1 | 1 . Parts Attached 6 | 6 . Power 2 | 2 . Engine 2 | 2 . Core . | . . Reactor . | . . Propulsion 1 | 1 . Treads . | . . Leg . | . . Wheel 1 | 1 . Hover . | . . Flight . | . . Utility 1 | 1 . Device 1 | 1 . Storage . | . . Processor . | . . Hackware . | . . Protection . | . . Artifact . | . . Weapon 2 | 2 . Energy Gun 1 | 1 . Energy Cannon . | . . Ballistic Gun 1 | 1 . Ballistic Cannon . | . . Launcher . | . . Special Weapon . | . . Impact Weapon . | . . Slashing Weapon . | . . Piercing Weapon . | . . Special Melee Weapon . | . . Unidentified Prototypes . | . . Parts Lost 1 | . 1 Power . | . . Propulsion . | . . Utility . | . . Weapon 1 | . 1 Highest Loss Streak 1 | . 1 Average Slot Usage (%) 100 | . 100 Engine 20 | . 20 Wheel 20 | . 20 Device 20 | . 20 Energy Gun 20 | . 20 Ballistic Gun 20 | . 20 Naked Turns . | . . Heaviest Build 10 | 10 10 Greatest Support 10 | 10 10 Greatest Overweight (x) . | . . Average Overweight (x) . | . . Largest Inventory Capacity 2 | 1 2 Average Capacity 1 | . 1 Most Carried 2 | 1 2 Average Carried 1 | . 1 Final Capacity 2 | 1 2 Final Carried 2 | 1 2 Class Distribution -------------------- 100% | Mutant Dominant Class ---------------- Mutant | -10/Materials Resources | -11 -10 ----------- Run | Scr Mat Matter Collected 260 | 260 . Remotely . | . . Salvage Created 47 | 12 35 Parts 13 | 6 7 Haulers Intercepted . | . . Recyclers Shooed . | . . Parts Field Recycled . | . . Retrieved Matter . | . . Parts Self-Destructed . | . . Prevented . | . . Kills | -11 -10 ------- Run | Scr Mat Combat Hostiles Destroyed 6 | 1 5 Guns 5 | 1 4 AOE 1 | . 1 Classes Destroyed 3 | 2 1 Tunneler 1 | 1 . Swarmer 3 | . 3 Grunt 3 | 1 2 Best Kill Streak 4 | 2 4 Combat Bots Only 4 | 1 4 Max Kills in Single Turn 1 | 1 1 Gunslinging . | . . Exploded 1 | . 1 Melee . | . . Uniques/NPCs Destroyed . | . . Combat | -11 -10 -------- Run | Scr Mat Damage Taken 847 | 45 802 Core 694 | 39 655 Absorbed by Shields . | . . Redirected to Core 457 | 17 440 Core Remaining (%) 100 | 100 . Volleys Fired 22 | 4 18 Largest 2 | 1 2 Hottest 60 | 40 60 Shots Fired 40 | 4 36 Gun 40 | 4 36 Cannon . | . . Launcher . | . . Special . | . . Kinetic 18 | . 18 Thermal . | . . Explosive . | . . Electromagnetic 22 | 4 18 Robot Hit Streak 7 | 1 7 Robot Miss Streak 4 | 1 4 Penetration Max . | . . Secondary Targets . | . . Shots Hit Robots 20 | 2 18 Core Hits 12 | 3 9 Critical Hits . | . . Critical Kills . | . . Critical Parts Destroyed . | . . Melee Attacks . | . . Impact . | . . Slashing . | . . Piercing . | . . Sneak Attacks . | . . Combat Hostiles . | . . Follow-up Attacks . | . . Damage Inflicted 380 | 37 343 Guns 267 | 37 230 Cannons . | . . Explosions 113 | . 113 Melee . | . . Ramming . | . . Kinetic 100 | . 100 Thermal 113 | . 113 Explosive . | . . Electromagnetic 167 | 37 130 Impact . | . . Slashing . | . . Piercing . | . . Highest Corruption . | . . Average Corruption . | . . Corruption Purged . | . . Overload Shots . | . . Overflow Damage . | . . Projectiles . | . . Explosions . | . . Melee . | . . Knockbacks . | . . Impact . | . . Kinetic . | . . Secondary . | . . Self-Inflicted Damage 53 | . 53 Shots 2 | . 2 Rammed . | . . Targets Rammed . | . . Kicked . | . . Crushed . | . . Highest Temperature 18 | 18 12 Average Temperature 9 | 13 5 Received Heat Transfer 300 | 24 276 Siege Activations . | . . Robots Corrupted . | . . Combat Hostiles . | . . Parts Fried . | . . Impact Corruptions . | . . Robots Melted . | . . Combat Hostiles . | . . Parts Melted . | . . Heat Transferred 150 | . 150 Parts Sabotaged . | . . Parts Stolen . | . . Parts Stripped . | . . Power Chain Reactions 2 | . 2 Missiles Intercepted . | . . Alert | -11 -10 ------- Run | Scr Mat Peak Influence 166 | 25 166 Average Influence 38 | 15 57 Maximum Alert Level . | . . Low Security (%) 100 | 100 100 Level 1 . | . . Level 2 . | . . Level 3 . | . . Level 4 . | . . Level 5 . | . . High Security . | . . Max Security . | . . Squads Dispatched 2 | . 2 Investigation 1 | . 1 Extermination . | . . Reinforcement 1 | . 1 Assault . | . . Garrison . | . . Intercept . | . . Construction Impeded . | . . Haulers Reinforced . | . . Stealth | -11 -10 --------- Run | Scr Mat Distress Signals . | . . Communications Jammed . | . . Distress Signals . | . . Times Spotted 11 | 1 10 Peak Tracking Total 6 | 1 6 Tactical Retreats 1 | . 1 Traps | -11 -10 ------- Run | Scr Mat Traps Triggered 1 | . 1 Indirectly . | . . Trap Hack Attempts . | . . Triggered . | . . Disarmed . | . . Reprogrammed . | . . Reused . | . . Traps Extracted . | . . Installed . | . . Triggered . | . . Machines | -11 -10 ---------- Run | Scr Mat Machines Disabled 1 | . 1 Max in Single Turn 1 | . 1 Machines Sabotaged . | . . Garrisons Compromised . | . . Overloaded Fab Kills . | . . Fab Network Shutdowns . | . . Hacking | -11 -10 --------- Run | Scr Mat Machines Accessed . | . . Terminals . | . . Fabricators . | . . Repair Stations . | . . Recycling Units . | . . Scanalyzers . | . . Garrison Access . | . . Total Hacks . | . . Successful . | . . Failed . | . . Catastrophic . | . . Database Lockouts . | . . Manual . | . . Terminals . | . . Fabricators . | . . Repair Stations . | . . Recycling Units . | . . Scanalyzers . | . . Garrison Access . | . . Terminal Hacks . | . . Fabricator Hacks . | . . Repair Station Hacks . | . . Recycling Unit Hacks . | . . Scanalyzer . | . . Garrison Access Hacks . | . . Unauthorized Hacks . | . . Terminals . | . . Fabricators . | . . Repair Stations . | . . Recycling Units . | . . Scanalyzers . | . . Garrison Access . | . . Data Cores Recovered . | . . Used . | . . Hacking Detections . | . . Full Trace Events . | . . Feedback Events . | . . Feedback Blocked . | . . Robot Schematics Acquired . | . . Robots Built . | . . Matter . | . . Time . | . . Total Robot Build Rating . | . . Part Schematics Acquired . | . . Parts Built . | . . Matter . | . . Time . | . . Total Part Build Rating . | . . Parts Repaired . | . . Time . | . . Parts Recycled . | . . Recycled Matter . | . . Retrieved Matter . | . . Retrieved Components . | . . Parts Scanalyzed . | . . Part Schematics Acquired . | . . Parts Damaged . | . . Bothacking | -11 -10 ------------ Run | Scr Mat Used RIF Installer . | . . Robots Hacked . | . . Non-combat . | . . Combat . | . . Robot Hacks Applied . | . . Relay Couplers Released . | . . Robots Rewired . | . . Allies Hacked . | . . Hacks Repelled . | . . Allies | -11 -10 -------- Run | Scr Mat Total Allies . | . . Largest Group . | . . Highest-Rated Group . | . . Highest-Rated Ally . | . . Total Orders . | . . Ally Attacks . | . . Total Damage . | . . Kills . | . . Allies Corrupted . | . . Allies Melted . | . . Intel | -11 -10 ------- Run | Scr Mat Robot Analysis Total . | . . Derelict Logs Recovered . | . . Drone Launches . | . . Drone Recoveries . | . . Exploration | -11 -10 ------------- Run | Scr Mat Turns Passed 268 | 119 149 Spaces Moved 226 | 129 97 Core 16 | 16 . Treads . | . . Legs . | . . Wheels 210 | 113 97 Hover . | . . Flight . | . . Fastest Speed 50 | 50 80 Average Speed 77 | 76 80 Slowest Speed 80 | 80 80 Overloaded Moves . | . . Propulsion Burnouts . | . . Robots Hopped . | . . Cave-ins Triggered . | . . Exploration Rate (%) 15 | 6 25 Regions Visited 1 Branch Regions . Pre-discovered Areas . | . . Known Exits Taken . | . . Unknown Exits Taken 1 | 1 . Scrap Searched . | . . Spaces Dug . | . . Terrain Destroyed 6 | . 6 Melee . | . . Projectile . | . . AOE 6 | . 6 Actions | -11 -10 --------- Run | Scr Mat Total 274 | 142 132 Wait 13 | . 13 Move 225 | 128 97 Hop . | . . Pick Up 2 | 1 1 Fast Attach 6 | 6 . Attach . | . . Detach . | . . Swap . | . . Drop 1 | 1 . Fire 22 | 4 18 Melee . | . . Ram . | . . Kick . | . . Crush . | . . Escape Stasis . | . . Rewire . | . . Trap . | . . Miscellaneous 5 | 2 3 Route ------- -11/Scrapyard -10/Materials (discovered 1 exit: [*Min]) History --------- Turn | Location | Event 2 | -11/Scrapyard | Met Revision 17 38 | -11/Scrapyard | Discovered new exit (range 8) 106 | -11/Scrapyard | Upgraded with Weapon slot (x1) 120 | -11/Scrapyard | Entered Materials 193 | -10/Materials | Discovered new exit (range 6) 247 | -10/Materials | Core integrity fell below 50% 258 | -10/Materials | Core integrity fell below 20% 269 | -10/Materials | Destroyed by G-34 Mercenary with Small Laser Last Messages --------------- 00193_ EXIT=FOUND 00207_ Chain reaction triggered in Lgt. Ion Engine. 00207_ S-10 Pest destroyed. 00207_ Electrolysis Chamber disabled. 00227_ U-05 Engineer builds a Door. 00231_ U-05 Engineer builds a Wall. 00233_ G-34 Mercenary destroyed. 00236_ U-05 Engineer lays Concrete. 00240_ S-10 Pest destroyed. 00245_ U-05 Engineer lays Concrete. 00249_ G-34 Mercenary destroyed. 00250_ U-05 Engineer lays Concrete. 00252_ S-10 Pest destroyed. 00258_ Chain reaction triggered in Ion Engine. 00259_ U-05 Engineer lays Concrete. 00263_ EM Pulse Gun destroyed. 00263_ Used Protomatter to restore core integrity (+54, depleted) 00265_ U-05 Engineer lays Concrete. 00267_ G-34 Mercenary misfires. 00267_ U-05 Engineer lays Concrete. Map ----- +----------------------------------------------------+ | | | | | | | | | | | | | ????????????????????????????????? | | ????????????????????????????????? | | ????????????????????????????????? | | ????????????????????????????????? | | ???????????????????#####????????? | | ??????????????????##"""##???????? | | ?????????????????##"|||"##??????? | | ?????????????????#"" ""#??????? | | ?????????????????# #??????? | | ?????????????????# < #??????? | | ?????????????????# #??????? | | ?????????????????# #??????? | | ??????????????????# ###?????? | | ???????????????????# ##;#####?? | | ?????????# ##### # #?? | | ???? =+% #?? | | ???? # g #?? | | ???? #g*u #?? | | ?????" """ ####%[g #?? | | ?????????"" !## #??#=@= %*#?? | | ?????????"" ??# #??#;;#;;##?? | | ????????? ???# #??#### ##??? | | ??????? ????# #?????# #???? | | ??????? ?????# #?????# #???? | | ???????###??????# ??????# #???? | | ????????????????# ####### ###?? | | ????????????????# #?? | | ????????????????# #?? | | ????????????????# #?? | | ????????????????########+## #?? | | ?????????????????????? # #?? | | ???????????????????? "T" # #?? | | ??????????????????# # #?? | | ??????????????????# # #?? | | ??????????????????# # #?? | | ??????????????????# """ # #?? | | ??????????????????# """ # #?? | | ??????????????????# """ # #?? | | ??????????????????# ??? # #?? | | ??????????????????#???? # #?? | | ??????????????????????? # #?? | | ????????????????????????### #?? | | ??????????????????????????# #?? | | ?????????????????########## #?? | +----------------------------------------------------+ Best States ------------- Heat Dissipation 35 Energy Generation 10 Energy Capacity 250 Matter Stores 300 Matter Capacity 300 Sight Range 16 Terrain Scan Density 10 Evasion (%) 50 Item Schematics ----------------- None Robot Schematics ------------------ None Fabricated ------------ Nothing Alien Tech Used ----------------- None Achievements -------------- None Challenges ------------ None RPGLIKE | -11 -10 --------- Run | Scr Mat Levels Raised . | . . XP Earned 3775 | 3100 675 XP Spent 1250 | 750 500 Upgrades 3 | 2 1 Weapon Slot 1 | 1 . Inventory Capacity 2 | 1 1 Protomatter Created 148 | 45 103 Integrity Restored 93 | 39 54 Core 93 | 39 54 Protomatter Decayed . | . . Game ------ Seed FocalChargePod Manual? 0 Play Time 00:06:31 Cumulative 0.8 hours Start 2019.12.20 @ 23:23:13 End 2019.12.20 @ 23:34:51 Sessions 1 Manual Loads 0 Difficulty Rogue Special Mode Winter2019/RPGLIKE Game No. 2 Rogue 2 Adventurer 0 Explorer 0 Win Type - Total 0 Types 0/0/0/0/0/0/0 Lore% 4 Gallery% 3 Achievement% 5 Wizard Run 0 Options --------- ASCII 0 Keyboard 1 Movement Vi Keybinds 0 Fullscreen 2 Font 18/SmallcapsGlow Map View 76x50 Tactical HUD 1 Map Filters NONE Filters NONE Steam 0 RUN: d008da8f-5998-4b67-a6e7-5986cba115ab